bitfinex-derivatives/quotes_SOLF0:USTF0_20241203
["timestamp","ask_amount","ask_price","bid_price","bid_amount"]
[1733207524397,2.1801,229.29,229.25,2.1803]
[1733207524894,2.1801,229.29,229.26,2.1803]
[1733207525991,5.57880598,229.31,229.26,2.1803]
[1733207526195,2.18,229.3,229.26,2.1803]
[1733207529597,5.57880598,229.31,229.14,1.3558]
[1733207529898,5.57880598,229.29,229.21,5.57880598]
[1733207530897,2.18,229.3,229.21,5.57880598]
[1733207531103,7.75870598,229.31,229.27,2.1802]
[1733207531400,2.0,229.32,229.25,5.57880598]
[1733207531601,2.0,229.32,229.3,2.1799]
[1733207532202,2.0,229.32,229.25,5.57880598]
[1733207532401,2.0,229.32,229.29,2.18]
[1733207533101,4.1798,229.32,229.25,5.57880598]
[1733207533299,4.1798,229.32,229.28,2.1801]
[1733207533493,2.0,229.32,229.25,5.57880598]
[1733207533998,2.0,229.32,229.29,2.18]
[1733207535099,2.0,229.32,229.25,5.57880598]
[1733207535100,4.1798,229.32,229.28,2.1801]
[1733207537591,2.0,229.32,229.27,2.1802]
[1733207537800,2.0,229.32,229.26,5.57880598]
[1733207537995,43.72585968,229.42,229.2,2.0]
[1733207537996,296.29566461,229.56,229.35,13.07]
[1733207538295,482.0,230.01,229.29,4.3601]
[1733207538296,13.08,229.94,229.55,5.57880598]
[1733207538492,7.75480598,229.72,229.61,2.1769]
[1733207538893,2.54,229.71,229.61,2.1769]
[1733207539093,2.54,229.71,229.6,5.57880598]
[1733207539400,2.54,229.71,229.62,2.1769]
[1733207539602,2.54,229.71,229.51,2.54]
[1733207539603,5.57880598,229.69,229.51,2.54]
[1733207539804,5.57880598,229.69,229.58,5.57880598]
[1733207540397,5.57880598,229.69,229.6,2.1771]
[1733207540805,5.57880598,229.69,229.58,5.57880598]
[1733207541003,2.54,229.68,229.59,2.1772]
[1733207541404,2.54,229.68,229.6,6.66847134]
[1733207541603,2.54,229.68,229.61,1.08966536]
[1733207541902,2.54,229.68,229.62,1.08966536]
[1733207542100,2.54,229.68,229.59,2.1772]
[1733207542306,2.54,229.68,229.6,2.83307451]
[1733207542501,2.54,229.68,229.61,2.83307451]
[1733207542705,8.61195374,229.7,229.62,1.08964404]
[1733207543003,2.54,229.69,229.63,1.08964404]
[1733207543202,2.54,229.69,229.56,8.61195374]
[1733207543397,2.54,229.69,229.57,5.01274613]
[1733207543597,2.54,229.69,229.58,3.92301871]
[1733207543801,2.54,229.69,229.59,2.83329129]
[1733207544002,12.63135374,229.74,229.6,2.83329129]
[1733207544203,2.54,229.73,229.61,1.74356387]
[1733207544405,2.54,229.73,229.62,1.08972742]
[1733207544605,2.54,229.73,229.56,2.1775]
[1733207544606,2.54,229.73,229.63,1.08972742]
[1733207544802,2.54,229.73,229.64,1.08972742]
[1733207545010,2.54,229.73,229.57,8.61195374]
[1733207545306,2.52,229.72,229.58,5.01283215]
[1733207545506,2.52,229.72,229.59,2.83333991]
[1733207545809,2.52,229.72,229.6,1.74359379]
[1733207546009,2.52,229.72,229.61,1.74359379]
[1733207546307,2.52,229.72,229.59,1.08974612]
[1733207546606,2.52,229.72,229.6,2.83328931]
[1733207546804,12.63135374,229.74,229.61,1.74354319]
[1733207547007,12.63135374,229.74,229.62,1.08971367]
[1733207547008,2.52,229.73,229.62,1.08971367]
[1733207547306,8.61195374,229.71,229.56,8.61195374]
[1733207547505,8.61195374,229.71,229.57,2.83329963]
[1733207547703,2.15144098,229.8,229.58,10.35552274]
[1733207547903,8.61195374,229.81,229.65,8.61195374]
[1733207548099,1.3778,229.83,229.69,8.61195374]
[1733207548307,2.72,229.82,229.69,8.61195374]
[1733207548508,2.72,229.81,229.7,1.74308504]
[1733207548712,1.3778,229.83,229.69,8.61195374]
[1733207548905,2.72,229.82,229.71,2.176]
[1733207549104,2.72,229.82,229.66,0.08766129]
[1733207549105,2.72,229.82,229.72,1.74297166]
[1733207549306,2.72,229.82,229.73,1.74295972]
[1733207549604,2.72,229.82,229.74,1.74295972]
[1733207549800,2.72,229.82,229.69,8.61195374]
[1733207550216,2.72,229.82,229.74,2.1757]
[1733207550507,2.72,229.82,229.7,8.61195374]
[1733207550706,2.72,229.82,229.75,1.74293947]
[1733207550903,2.72,229.82,229.76,3.92138397]
[1733207551105,2.72,229.82,229.77,3.92138397]
[1733207551304,2.72,229.82,229.75,0.08760051]
[1733207551508,2.72,229.82,229.76,3.92106753]
[1733207551708,2.72,229.82,229.77,3.92106753]
[1733207552014,2.72,229.82,229.75,0.08760051]
[1733207552210,2.72,229.82,229.76,3.92110855]
[1733207552416,2.72,229.82,229.75,0.08760051]
[1733207552605,2.72,229.82,229.62,2.72]
[1733207552809,2.72,229.82,229.66,8.61195374]
[1733207553003,2.72,229.82,229.67,3.92135065]
[1733207553204,2.72,229.82,229.68,3.92135065]
[1733207553403,2.72,229.82,229.69,3.92135065]
[1733207553609,2.72,229.82,229.7,3.92135065]
[1733207553905,1.3778,229.83,229.71,3.92135065]
[1733207554109,1.3778,229.83,229.69,8.61195374]
[1733207554309,1.3778,229.83,229.7,3.92197135]
[1733207554513,1.3778,229.83,229.71,3.92197135]
[1733207554709,1.3778,229.83,229.72,3.92197135]
[1733207554912,1.3778,229.83,229.73,3.92197135]
[1733207555112,9.98975374,229.83,229.74,3.92197135]
[1733207555313,9.98975374,229.83,229.66,8.61195374]
[1733207555515,9.98975374,229.83,229.67,7.18993618]
[1733207555713,9.98975374,229.83,229.68,7.18993618]
[1733207555916,9.98975374,229.83,229.69,7.18993618]
[1733207556215,9.98975374,229.83,229.7,3.92178337]
[1733207556513,9.98975374,229.83,229.71,3.92178337]
[1733207556713,9.98975374,229.83,229.72,3.92178337]
[1733207556914,9.98975374,229.83,229.73,3.92178337]
[1733207557109,9.98975374,229.83,229.66,10.78845374]
[1733207557511,9.98975374,229.83,229.67,7.19000713]
[1733207557716,9.98975374,229.83,229.73,0.0874593]
[1733207559216,1.3425,229.82,229.73,0.0874593]
[1733207560418,1.3425,229.82,229.72,0.0874593]
[1733207561714,1.3425,229.82,229.73,5.09873692]
[1733207561916,1.3425,229.82,229.73,0.0874593]
[1733207562113,1.3425,229.82,229.72,0.0874593]
[1733207562313,2.1763,229.69,229.62,10.78885374]
[1733207562518,2.7,229.75,229.63,8.27966184]
[1733207562821,2.7,229.75,229.64,8.27966184]
[1733207563020,2.7,229.75,229.65,8.27966184]
[1733207563320,2.7,229.75,229.66,8.27966184]
[1733207563522,2.7,229.75,229.67,8.27966184]
[1733207563719,2.7,229.75,229.68,8.27966184]
[1733207563920,2.7,229.75,229.69,5.01137427]
[1733207564119,2.7,229.75,229.7,5.01137427]
[1733207564323,2.1763,229.69,229.62,2.1769]
[1733207564714,2.1763,229.69,229.63,8.28004512]
[1733207564919,2.1763,229.69,229.64,8.28004512]
[1733207565120,2.7,229.75,229.65,8.28004512]
[1733207565326,2.1764,229.68,229.66,8.28004512]
[1733207565523,2.1764,229.68,229.67,8.28004512]
[1733207565722,4.8764,229.68,229.67,4.09084512]
[1733207565934,4.8764,229.68,229.54,8.61195374]
[1733207565935,2.7,229.68,229.54,8.61195374]
[1733207566126,2.7,229.68,229.55,3.25331008]
[1733207566326,3.9634,229.68,229.56,3.25331008]
[1733207566530,3.9634,229.68,229.54,8.61195374]
[1733207567532,12.57535374,229.68,229.52,0.0857]
[1733207568229,2.1773,229.59,229.52,0.0857]
[1733207568424,3.9634,229.68,229.62,0.40469]
[1733207569931,2.1768,229.63,229.62,0.40469]
[1733207571934,2.1773,229.58,229.52,2.2635]
[1733207572129,2.72,229.62,229.42,23.93641472]
[1733207572330,2.72,229.61,229.47,8.61195374]
[1733207573034,2.72,229.61,229.49,2.1781]
[1733207573233,2.72,229.61,229.47,8.61195374]
[1733207573826,2.1778,229.53,229.48,2.1782]
[1733207574738,2.72,229.61,229.47,8.61195374]
[1733207575332,2.1781,229.5,229.47,8.61195374]
[1733207575533,2.72,229.55,229.46,1.2926]
[1733207575836,2.72,229.54,229.46,1.2926]
[1733207576138,2.1782,229.49,229.46,1.2926]
[1733207576836,2.72,229.48,229.36,23.93641472]
[1733207577038,2.72,229.48,229.38,8.61195374]
[1733207577238,2.1784,229.46,229.42,2.1787]
[1733207577435,2.1784,229.46,229.43,3.28124826]
[1733207577638,2.1784,229.46,229.42,2.1787]
[1733207578237,2.72,229.48,229.42,2.1787]
[1733207578438,2.1783,229.47,229.42,2.1787]
[1733207579045,2.1788,229.43,229.38,10.79115374]
[1733207579241,2.72,229.48,229.38,8.61195374]
[1733207579842,2.72,229.48,229.37,1.3296]
[1733207580045,2.72,229.48,229.34,8.61195374]
[1733207580046,2.179,229.4,229.34,10.79145374]
[1733207580236,2.179,229.4,229.35,3.29291462]
[1733207580541,2.56,229.42,229.36,3.29291462]
[1733207580739,2.56,229.42,229.37,3.29291462]
[1733207580740,2.179,229.4,229.37,3.29291462]
[1733207580946,2.56,229.42,229.3,8.61195374]
[1733207581241,2.56,229.42,229.31,15.1685893]
[1733207581446,2.56,229.42,229.32,8.57355047]
[1733207581645,2.56,229.42,229.33,8.57355047]
[1733207581945,2.1792,229.39,229.34,5.47711941]
[1733207582141,2.56,229.42,229.34,8.61195374]
[1733207582336,2.56,229.42,229.35,3.3025767]
[1733207582542,2.56,229.42,229.34,8.61195374]
[1733207582839,2.56,229.48,229.38,8.61195374]
[1733207583045,1.2789,229.52,229.39,8.58285458]
[1733207583240,2.1783,229.48,229.43,2.1787]
[1733207583441,2.56,229.51,229.42,8.61195374]
[1733207583642,0.28638,229.52,229.42,8.61195374]
[1733207583840,2.46438,229.52,229.43,8.57511981]
[1733207584045,2.46438,229.52,229.42,8.61195374]
[1733207584350,2.46438,229.52,229.43,3.29783511]
[1733207584551,2.46438,229.52,229.44,3.29783511]
[1733207584552,2.178,229.51,229.44,3.29783511]
[1733207584846,2.178,229.51,229.45,3.29783511]
[1733207585045,2.178,229.51,229.42,8.61195374]
[1733207585345,0.28638,229.52,229.43,3.29638958]
[1733207585547,2.1782,229.49,229.44,5.47498958]
[1733207585845,2.1782,229.49,229.44,2.1786]
[1733207586242,2.178,229.51,229.42,8.61195374]
[1733207586444,0.28638,229.52,229.42,8.61195374]
[1733207586645,0.28638,229.52,229.46,8.61195374]
[1733207586942,0.28638,229.52,229.48,2.1782]
[1733207589545,0.28638,229.52,229.51,2.178]
[1733207592649,1.3066,229.67,229.56,2.1775]
[1733207592650,2.1771,229.61,229.56,2.1775]
[1733207592846,2.1771,229.61,229.54,8.61195374]
[1733207593054,2.56,229.64,229.57,2.1774]
[1733207593254,2.1769,229.62,229.57,2.1774]
[1733207593550,2.56,229.64,229.54,8.61195374]
[1733207593745,2.56,229.64,229.5,11.17195374]
[1733207593949,2.56,229.64,229.47,1.5733]
[1733207594351,2.1775,229.56,229.51,2.178]
[1733207594654,2.56,229.64,229.47,1.5733]
[1733207594951,2.1777,229.54,229.5,2.178]
[1733207595250,2.1777,229.54,229.47,1.5733]
[1733207595450,2.56,229.58,229.48,2.1782]
[1733207595451,2.1778,229.53,229.48,2.1782]
[1733207595755,2.56,229.52,229.4,8.61195374]
[1733207595955,2.56,229.51,229.4,8.61195374]
[1733207596555,2.56,229.51,229.44,2.1786]
[1733207597258,2.1782,229.49,229.44,2.1786]
[1733207597452,2.1782,229.49,229.4,8.61195374]
[1733207597655,2.1782,229.49,229.45,2.1785]
[1733207598052,2.56,229.51,229.4,8.61195374]
[1733207598357,2.1784,229.47,229.43,2.1786]
[1733207598754,2.56,229.51,229.4,8.61195374]
[1733207598947,2.1783,229.48,229.44,2.1786]
[1733207599149,2.1783,229.48,229.37,1.3466]
[1733207599150,29.11222305,229.68,229.37,1.3466]
[1733207599353,2.1771,229.6,229.51,2.1779]
[1733207599556,8.61195374,229.65,229.51,2.1779]
[1733207599959,2.1775,229.57,229.49,1.2837]
[1733207600156,2.1775,229.57,229.52,2.1778]
[1733207601558,2.1772,229.59,229.54,2.1776]
[1733207602057,2.56,229.6,229.49,1.2837]
[1733207602256,2.1773,229.58,229.49,1.2837]
[1733207602457,2.56,229.6,229.49,1.2837]
[1733207603160,2.1775,229.56,229.49,1.2837]
[1733207604160,2.1775,229.56,229.51,2.178]
[1733207604660,2.1775,229.56,229.52,2.1779]
[1733207607062,2.1772,229.6,229.56,2.1774]
[1733207607561,2.1772,229.6,229.52,8.61195374]
[1733207608558,2.1772,229.6,229.56,2.1775]
[1733207608967,2.1772,229.6,229.52,8.61195374]
[1733207609167,2.1772,229.6,229.55,2.1776]
[1733207609363,2.177,229.61,229.52,8.61195374]
[1733207610559,2.1772,229.6,229.52,8.61195374]
[1733207611566,2.1772,229.6,229.56,2.1775]
[1733207613064,2.1769,229.63,229.58,2.1773]
[1733207613869,2.48,229.64,229.58,2.1773]
[1733207614068,2.177,229.62,229.58,2.1773]
[1733207614263,2.48,229.64,229.58,2.1773]
[1733207614869,2.1769,229.62,229.58,2.1773]
[1733207615065,2.1769,229.62,229.52,8.61195374]
[1733207615066,2.1769,229.62,229.57,2.1774]
[1733207615467,2.1769,229.62,229.58,2.1773]
[1733207615969,2.1769,229.62,229.52,8.61195374]
[1733207616166,2.1769,229.62,229.57,2.1774]
[1733207616564,2.177,229.61,229.57,2.1774]
[1733207616771,2.48,229.64,229.54,2.1776]
[1733207618171,2.1773,229.59,229.54,2.1776]
[1733207620068,2.1773,229.58,229.54,2.1776]
[1733207620267,2.48,229.64,229.49,1.2837]
[1733207620467,8.61195374,229.62,229.46,2.48]
[1733207620671,1.3436,229.61,229.46,2.48]
[1733207621068,1.3436,229.61,229.49,2.1781]
[1733207621565,2.1778,229.54,229.49,2.1781]
[1733207622670,2.48,229.58,229.49,2.1781]
[1733207622972,301.3064712,229.72,229.59,2.1772]
[1733207623169,2.48,229.71,229.57,8.61195374]
[1733207623365,301.3064712,229.72,229.57,8.61195374]
[1733207623767,2.48,229.73,229.57,8.61195374]
[1733207623968,2.1764,229.68,229.57,8.61195374]
[1733207624974,53.95195374,229.78,229.63,2.1768]
[1733207625275,6.5242,229.77,229.61,8.61195374]
[1733207625574,6.5242,229.77,229.64,2.1767]
[1733207625770,6.5242,229.77,229.61,8.61195374]
[1733207626474,2.1762,229.7,229.61,8.61195374]
[1733207628073,2.1762,229.7,229.64,2.1767]
[1733207628475,2.1762,229.7,229.61,8.61195374]
[1733207629278,2.1762,229.7,229.65,2.1766]
[1733207631378,2.1763,229.69,229.65,2.1766]
[1733207632174,2.1762,229.7,229.65,2.1766]
[1733207632975,2.48,229.74,229.62,2.48]
[1733207633177,6.5242,229.77,229.62,3.7875]
[1733207633784,2.1759,229.73,229.69,2.1762]
[1733207635176,2.1759,229.73,229.68,2.1763]
[1733207635876,2.1761,229.73,229.62,3.7875]
[1733207636977,2.1761,229.73,229.68,2.1764]
[1733207638185,6.5242,229.77,229.62,3.7875]
[1733207638381,6.5242,229.77,229.66,2.1766]
[1733207638778,6.5242,229.77,229.52,19.00406655]
[1733207638982,6.5242,229.77,229.59,8.61195374]
[1733207638983,8.61195374,229.76,229.59,8.61195374]
[1733207639584,2.1764,229.69,229.64,2.1769]
[1733207639885,2.1764,229.69,229.59,8.61195374]
[1733207640781,2.1764,229.69,229.64,2.1768]
[1733207641087,2.1764,229.69,229.59,8.61195374]
[1733207641285,2.1764,229.69,229.65,2.1768]
[1733207642283,2.36,229.71,229.65,2.1768]
[1733207642284,2.1765,229.68,229.65,2.1768]
[1733207643887,2.1764,229.69,229.65,2.1768]
[1733207644488,2.1764,229.69,229.64,2.1769]
[1733207644889,2.1767,229.66,229.53,1.2758]
[1733207645084,2.36,229.7,229.57,8.61195374]
[1733207645285,2.36,229.69,229.57,8.61195374]
[1733207645792,2.36,229.69,229.63,2.177]
[1733207645793,2.1766,229.67,229.63,2.177]
[1733207646487,2.36,229.69,229.57,8.61195374]
[1733207646791,2.1767,229.66,229.62,2.1771]
[1733207646985,2.36,229.69,229.62,2.1771]
[1733207647390,2.1766,229.67,229.6,2.1773]
[1733207647694,2.1766,229.67,229.57,8.61195374]
[1733207648692,2.1758,229.75,229.65,8.61195374]
[1733207649196,4.8281,229.77,229.65,8.61195374]
[1733207649590,4.8281,229.77,229.72,5.50638252]
[1733207649789,1.385,229.83,229.72,5.50638252]
[1733207649992,7.86638252,229.82,229.72,5.50638252]
[1733207650495,2.36,229.82,229.75,2.1758]
[1733207650700,2.36,229.82,229.72,5.50638252]
[1733207650890,6.89138252,229.83,229.72,5.50638252]
[1733207651092,2.36,229.82,229.72,5.50638252]
[1733207651389,5.0965,229.82,229.72,5.50638252]
[1733207651589,5.0965,229.82,229.69,10.96310382]
[1733207654392,5.0965,229.82,229.71,2.1761]
[1733207654996,5.0965,229.82,229.7,2.1763]
[1733207655595,13.69960382,229.82,229.65,8.60310382]
[1733207656400,13.69960382,229.82,229.67,2.1766]
[1733207656596,13.69960382,229.82,229.65,8.60310382]
[1733207656801,13.69960382,229.82,229.65,10.77980382]
[1733207657001,13.69960382,229.82,229.65,8.60310382]
[1733207657600,13.69960382,229.82,229.65,10.77990382]
[1733207659004,8.60310382,229.78,229.65,10.77990382]
[1733207659192,8.60310382,229.78,229.62,1.2614]
[1733207659799,8.60310382,229.78,229.63,2.1769]
[1733207660599,2.14339341,229.79,229.61,2.1771]
[1733207660600,2.1768,229.65,229.61,2.1771]
[1733207660801,2.36,229.68,229.61,2.1771]
[1733207661700,2.36,229.68,229.62,2.177]
[1733207662102,2.36,229.68,229.57,8.60310382]
[1733207662499,2.1768,229.66,229.61,2.1771]
[1733207663302,2.1768,229.66,229.57,8.60310382]
[1733207664501,2.1768,229.66,229.61,2.1771]
[1733207665201,2.1768,229.65,229.61,2.1771]
[1733207665606,2.36,229.68,229.57,8.60310382]
[1733207665804,2.1768,229.65,229.62,2.1771]
[1733207667506,2.1767,229.66,229.62,2.1771]
[1733207668213,4.5365,229.68,229.64,2.1768]
[1733207668606,2.36,229.68,229.64,2.1768]
[1733207668807,4.7832,229.73,229.68,2.1765]
[1733207669010,4.7832,229.73,229.61,8.60310382]
[1733207669403,2.1761,229.72,229.68,2.1764]
[1733207669599,4.7832,229.73,229.68,2.1764]
[1733207669809,3.5235,229.73,229.68,2.1764]
[1733207670206,3.5235,229.73,229.61,8.60310382]
[1733207670207,3.5235,229.73,229.67,2.1765]
[1733207670709,2.1761,229.72,229.67,2.1765]
[1733207671507,2.1761,229.72,229.67,7.68506316]
[1733207672404,3.5235,229.73,229.67,7.68506316]
[1733207672605,2.1762,229.71,229.67,7.68506316]
[1733207673208,2.1762,229.71,229.67,2.1765]
[1733207673409,2.1762,229.71,229.68,5.50856316]
[1733207673713,2.1762,229.71,229.67,2.1765]
[1733207673913,2.1762,229.71,229.68,5.50856316]
[1733207674107,2.1762,229.71,229.67,7.68506316]
[1733207674610,1.2835,229.73,229.67,5.50856316]
[1733207674812,2.24,229.75,229.69,5.50856316]
[1733207675508,2.1757,229.76,229.69,5.50856316]
[1733207675707,2.1757,229.76,229.71,2.1761]
[1733207676209,2.1757,229.76,229.71,7.68466316]
[1733207676413,2.24,229.77,229.71,7.68466316]
[1733207676614,2.1759,229.75,229.71,7.68466316]
[1733207677113,2.24,229.77,229.71,7.68466316]
[1733207677114,2.1757,229.76,229.71,7.68466316]
[1733207680915,2.1759,229.75,229.7,2.1762]
[1733207681121,2.1759,229.75,229.69,5.50856316]
[1733207682018,2.1757,229.76,229.71,2.1761]
[1733207683118,2.1759,229.75,229.71,2.1762]
[1733207685518,2.24,229.77,229.69,5.50856316]
[1733207686422,2.176,229.73,229.69,7.68486316]
[1733207686621,2.24,229.77,229.69,5.50856316]
[1733207686818,4.4157,229.77,229.71,2.1762]
[1733207687023,2.1757,229.77,229.69,5.50856316]
[1733207688023,2.1757,229.76,229.72,2.176]
[1733207689033,2.1755,229.78,229.74,2.1759]
[1733207692724,2.24,229.8,229.66,1.3232]
[1733207692929,2.1756,229.77,229.73,2.176]
[1733207694823,2.1755,229.79,229.74,2.1758]
[1733207695024,2.24,229.8,229.74,2.1758]
[1733207695928,2.1755,229.78,229.74,2.1758]
[1733207696539,2.1755,229.78,229.73,2.1759]
[1733207696733,2.1755,229.78,229.72,5.50856316]
[1733207697337,2.1755,229.78,229.74,2.1759]
[1733207698832,2.16,229.84,229.76,5.50856316]
[1733207699134,2.16,229.83,229.76,5.50856316]
[1733207699332,2.16,229.85,229.76,5.50856316]
[1733207700136,2.1753,229.81,229.77,2.1756]
[1733207704048,2.5518,229.89,229.8,5.50856316]
[1733207704233,2.5518,229.89,229.82,5.50856316]
[1733207704632,2.5518,229.89,229.82,7.68366316]
[1733207704633,2.1747,229.87,229.82,7.68366316]
[1733207704836,2.5518,229.89,229.82,5.50856316]
[1733207705241,2.5518,229.89,229.81,5.50856316]
[1733207705441,5.50856316,229.86,229.68,1.565]
[1733207705743,2.175,229.84,229.79,2.1754]
[1733207706340,2.175,229.84,229.8,5.50856316]
[1733207706534,2.175,229.84,229.8,7.68386316]
[1733207708032,2.1749,229.85,229.8,7.68386316]
[1733207708242,4.7118,229.89,229.8,5.50856316]
[1733207708440,10.22036316,229.89,229.81,2.1752]
[1733207708641,10.22036316,229.89,229.82,5.50856316]
[1733207709334,4.7118,229.89,229.84,2.1749]
[1733207710133,4.7118,229.89,229.82,5.50856316]
[1733207710339,2.1746,229.88,229.83,2.175]
[1733207711944,2.1746,229.88,229.84,2.175]
[1733207712146,2.1746,229.88,229.82,5.50856316]
[1733207713944,2.1746,229.88,229.83,2.1751]
[1733207714646,2.5518,229.89,229.83,2.1751]
[1733207715042,1.2617,229.89,229.84,7.68346316]
[1733207715243,2.16,229.92,229.84,7.68346316]
[1733207715641,2.1744,229.9,229.86,5.50856316]
[1733207716443,2.1743,229.91,229.86,7.68336316]
[1733207716745,2.1743,229.91,229.86,5.50856316]
[1733207716951,2.1743,229.91,229.86,7.68336316]
[1733207718447,2.1743,229.91,229.87,2.1747]
[1733207720446,2.1743,229.91,229.87,5.50856316]
[1733207721048,2.1743,229.91,229.87,7.68326316]
[1733207721350,2.1743,229.91,229.87,5.50856316]
[1733207722552,2.1743,229.92,229.89,5.50856316]
[1733207723246,2.1741,229.94,229.89,5.50856316]
[1733207723448,11.67596316,229.97,229.89,5.50856316]
[1733207724852,2.174,229.95,229.89,5.50856316]
[1733207725152,11.67596316,229.97,229.89,5.50856316]
[1733207725453,2.1742,229.93,229.89,5.50856316]
[1733207725650,11.67596316,229.97,229.83,2.16]
[1733207725948,11.67596316,229.97,229.88,5.50856316]
[1733207726155,2.1743,229.92,229.88,5.50856316]
[1733207727456,2.1743,229.92,229.88,7.68316316]
[1733207727655,2.1743,229.92,229.88,2.1746]
[1733207727859,2.1743,229.92,229.83,2.16]
[1733207728157,2.1743,229.92,229.89,5.50856316]
[1733207731857,2.1743,229.92,229.83,2.16]
[1733207732051,2.1743,229.92,229.88,5.50856316]
[1733207733859,2.1743,229.92,229.88,7.68316316]
[1733207734358,2.1741,229.94,229.88,5.50856316]
[1733207734552,5.50856316,229.96,229.88,5.50856316]
[1733207735155,2.1742,229.92,229.88,5.50856316]
[1733207738367,5.50856316,229.96,229.87,7.68316316]
[1733207738558,5.50856316,229.96,229.87,2.1746]
[1733207738753,5.50856316,229.96,229.88,5.50856316]
[1733207739859,5.50856316,229.9,229.66,17.4232]
[1733207740056,5.50856316,229.9,229.82,5.50856316]
[1733207740260,5.50856316,229.92,229.82,5.50856316]
[1733207740456,5.50856316,229.92,229.84,5.50856316]
[1733207741261,5.50856316,229.92,229.8,2.1753]
[1733207741461,5.50856316,229.92,229.83,5.50856316]
[1733207741957,2.1745,229.9,229.83,5.50856316]
[1733207742155,7.58856316,229.92,229.83,5.50856316]
[1733207742666,2.08,229.92,229.83,5.50856316]
[1733207742864,2.1748,229.87,229.83,5.50856316]
[1733207744059,2.1748,229.86,229.83,5.50856316]
[1733207744762,2.1748,229.86,229.81,2.1752]
[1733207744963,2.1748,229.86,229.84,5.50856316]
[1733207746364,2.1748,229.86,229.82,2.08]
[1733207746565,2.1748,229.86,229.84,5.50856316]
[1733207748371,2.1747,229.88,229.84,5.50856316]
[1733207748665,5.50856316,229.95,229.86,5.50856316]
[1733207749066,5.50856316,229.95,229.86,7.68336316]
[1733207749266,5.50856316,229.95,229.86,5.50856316]
[1733207750562,5.50856316,229.95,229.82,2.08]
[1733207750771,5.50856316,229.95,229.86,5.50856316]
[1733207751468,2.1745,229.89,229.86,5.50856316]
[1733207751771,2.1744,229.9,229.86,5.50856316]
[1733207751967,5.50856316,229.95,229.86,5.50856316]
[1733207752176,1.334,230.04,229.9,2.1744]
[1733207752376,5.50856316,230.03,229.93,5.50856316]
[1733207752770,1.334,230.04,229.93,5.50856316]
[1733207753268,5.50856316,230.03,229.93,5.50856316]
[1733207755474,5.50856316,230.03,229.92,2.1742]
[1733207755775,3.414,230.04,229.95,5.50856316]
[1733207755969,5.50856316,230.03,229.85,19.95174949]
[1733207756175,5.50856316,229.96,229.85,5.50856316]
[1733207756376,5.50856316,229.96,229.87,5.50856316]
[1733207756874,2.1741,229.94,229.87,5.50856316]
[1733207757070,5.50856316,229.96,229.87,5.50856316]
[1733207757871,1.2734,229.95,229.87,5.50856316]
[1733207758073,2.1742,229.93,229.87,5.50856316]
[1733207758275,2.6597,229.95,229.87,5.50856316]
[1733207759468,2.1744,229.91,229.87,5.50856316]
[1733207759672,2.6597,229.95,229.87,5.50856316]
[1733207760275,2.1744,229.9,229.83,2.175]
[1733207760476,2.1744,229.9,229.87,5.50856316]
[1733207761676,2.1743,229.91,229.89,5.50856316]
[1733207762078,2.6597,229.95,229.89,5.50856316]
[1733207762478,2.1744,229.9,229.89,5.50856316]
[1733207763983,2.1743,229.91,229.89,5.50856316]
[1733207764777,2.1742,229.92,229.89,5.50856316]
[1733207765778,2.1741,229.93,229.89,5.50856316]
[1733207765979,2.08,230.01,229.92,5.50856316]
[1733207766975,2.1736,229.99,229.92,5.50856316]
[1733207767171,2.08,230.01,229.92,5.50856316]
[1733207767584,2.1739,229.96,229.92,5.50856316]
[1733207770488,2.174,229.95,229.92,5.50856316]
[1733207771087,2.174,229.95,229.91,5.50856316]
[1733207772687,2.1737,229.98,229.93,2.1741]
[1733207772988,7.58856316,230.03,229.91,5.50856316]
[1733207773583,2.08,230.03,229.91,5.50856316]